fUST/lending_fUST_20250530
["ID","MTS","AMOUNT","RATE_DAILY","PERIOD"]
[363069564,1748566248387,-430.0,0.00021917,2]
[363069566,1748566248397,-430.0,0.00021917,2]
[363069568,1748566248406,-199.77,0.00021917,2]
[363069570,1748566248416,-430.0,0.00021917,2]
[363069572,1748566248426,-960.46,0.00021917,2]
[363069574,1748566248436,-430.0,0.00021917,2]
[363069576,1748566248445,-1200.78,0.00021917,2]
[363069578,1748566248455,-960.21,0.00021917,2]
[363069580,1748566248465,-1011.91,0.00021917,2]
[363069582,1748566248475,-1032.95,0.00021917,2]
[363069584,1748566248484,-689.73,0.00021917,2]
[363069586,1748566248494,-1315.76,0.00021917,2]
[363069588,1748566248503,-497.12,0.00021917,2]
[363069589,1748566248513,-804.44,0.00021917,2]
[363069591,1748566248523,-430.0,0.00021917,2]
[363069593,1748566248533,-430.0,0.00021917,2]
[363069596,1748566248544,-430.0,0.00021917,2]
[363069598,1748566248553,-430.0,0.00021917,2]
[363069599,1748566248563,-612.13,0.00021917,2]
[363069601,1748566248574,-430.0,0.00021917,2]
[363069604,1748566248587,-430.0,0.00021917,2]
[363069606,1748566248597,-758.53,0.00021917,2]
[363069607,1748566248607,-688.03,0.00021917,2]
[363069609,1748566248619,-550.23,0.00021917,2]
[363069611,1748566248628,-430.0,0.00021917,2]
[363069613,1748566248638,-430.0,0.00021917,2]
[363069615,1748566248648,-201.14372197,0.00021918,2]
[363069617,1748566248660,-992.29,0.00022,7]
[363069619,1748566248670,-3898.16,0.00022,7]
[363069622,1748566248680,-4959.21,0.00022,2]
[363069623,1748566248690,-842.85094271,0.00022003,6]
[363069625,1748566248700,-500.0,0.00022059,2]
[363069639,1748566248818,-236.85360421,0.00022074,2]
[363069641,1748566248829,-842.85094271,0.00022141,6]
[363069643,1748566248839,-500.0,0.0002216,2]
[363069645,1748566248849,-430.0,0.00022191,2]
[363069647,1748566248858,-430.0,0.00022191,2]
[363069649,1748566248871,-430.0,0.00022191,2]
[363069651,1748566248881,-430.0,0.00022191,2]
[363069653,1748566248891,-961.64,0.00022191,2]
[363069655,1748566248900,-1021.24,0.00022191,2]
[363069657,1748566248910,-430.0,0.00022191,2]
[363069659,1748566248920,-430.0,0.00022191,2]
[363069661,1748566248929,-614.42,0.00022191,2]
[363069663,1748566248939,-538.74,0.00022191,2]
[363069665,1748566248949,-430.0,0.00022191,2]
[363069667,1748566248959,-430.0,0.00022191,2]
[363069669,1748566248969,-1700.68,0.00022191,2]
[363069671,1748566248979,-430.0,0.00022191,2]
[363069672,1748566248988,-317.73,0.00022191,2]
[363069674,1748566248998,-430.0,0.00022191,2]
[363069676,1748566249007,-430.0,0.00022191,2]
[363069678,1748566249017,-430.0,0.00022191,2]
[363069680,1748566249027,-960.46,0.00022191,2]
[363069682,1748566249037,-430.0,0.00022191,2]
[363069684,1748566249047,-1200.78,0.00022191,2]
[363069686,1748566249056,-960.21,0.00022191,2]
[363069688,1748566249066,-1011.91,0.00022191,2]
[363069690,1748566249076,-1032.95,0.00022191,2]
[363069692,1748566249085,-689.73,0.00022191,2]
[363069694,1748566249094,-1315.76,0.00022191,2]
[363069696,1748566249103,-497.12,0.00022191,2]
[363069698,1748566249113,-804.44,0.00022191,2]
[363069700,1748566249125,-430.0,0.00022191,2]
[363069702,1748566249135,-495.23,0.00022191,2]
[363069704,1748566249144,-430.0,0.00022191,2]
[363069706,1748566249154,-430.0,0.00022191,2]
[363069708,1748566249163,-612.13,0.00022191,2]
[363069710,1748566249174,-430.0,0.00022191,2]
[363069712,1748566249183,-430.0,0.00022191,2]
[363069714,1748566249193,-758.53,0.00022191,2]
[363069716,1748566249203,-688.03,0.00022191,2]
[363069718,1748566249212,-550.23,0.00022191,2]
[363069720,1748566249222,-430.0,0.00022191,2]
[363069722,1748566249231,-430.0,0.00022191,2]
[363069724,1748566249240,-678.02767498,0.00022272,2]
[363069726,1748566249249,-842.85094271,0.00022279,6]
[363069728,1748566249259,-500.0,0.00022337,2]
[363069730,1748566249268,-842.85094271,0.00022417,7]
[363069732,1748566249278,-430.0,0.00022465,2]
[363069734,1748566249287,-430.0,0.00022465,2]
[363069736,1748566249297,-430.0,0.00022465,2]
[363069738,1748566249306,-535.22473933,0.00022465,2]
[363069740,1748566249315,-961.64,0.00022465,2]
[363069741,1748566249325,-1021.24,0.00022465,2]
[363069743,1748566249334,-174.59,0.00022465,2]
[363069745,1748566249343,-183.67908741,0.00022465,2]
[363069747,1748566249352,-614.42,0.00022465,2]
[363069749,1748566249362,-538.74,0.00022465,2]
[363069751,1748566249373,-430.0,0.00022465,2]
[363069753,1748566249383,-430.0,0.00022465,2]
[363069755,1748566249392,-1700.68,0.00022465,2]
[363069757,1748566249402,-430.0,0.00022465,2]
[363069759,1748566249412,-430.0,0.00022465,2]
[363069761,1748566249421,-430.0,0.00022465,2]
[363069763,1748566249430,-430.0,0.00022465,2]
[363069765,1748566249439,-960.46,0.00022465,2]
[363069767,1748566249448,-430.0,0.00022465,2]
[363069769,1748566249457,-1200.78,0.00022465,2]
[363069771,1748566249467,-960.21,0.00022465,2]
[363069773,1748566249478,-1011.91,0.00022465,2]
[363069775,1748566249487,-1032.95,0.00022465,2]
[363069777,1748566249496,-689.73,0.00022465,2]
[363069779,1748566249506,-1315.76,0.00022465,2]
[363069781,1748566249516,-497.12,0.00022465,2]
[363069782,1748566249525,-804.44,0.00022465,2]
[363069784,1748566249534,-430.0,0.00022465,2]
[363069786,1748566249543,-430.0,0.00022465,2]
[363069788,1748566249553,-612.13,0.00022465,2]
[363069790,1748566249562,-201.99,0.00022465,2]
[363069792,1748566249572,-430.0,0.00022465,2]
[363069794,1748566249584,-758.53,0.00022465,2]
[363069796,1748566249594,-688.03,0.00022465,2]
[363069798,1748566249602,-550.23,0.00022465,2]
[363069800,1748566249611,-430.0,0.00022465,2]
[363069802,1748566249621,-430.0,0.00022465,2]
[363069804,1748566249630,-11716.72164636,0.000225,7]
[363069806,1748566249639,-11716.72164636,0.000225,7]
[363069808,1748566249649,-12660.97845086,0.000225,7]
[363069810,1748566249659,-842.85094271,0.00022555,7]
[363069812,1748566249671,-158.9552041,0.00022603,2]
[363069814,1748566249680,-842.85094271,0.00022693,7]
[363069816,1748566249689,-1000.0,0.00022708,2]
[363069818,1748566249698,-151.0,0.00022739,7]
[363069819,1748566249707,-151.0,0.00022739,7]
[363069821,1748566249716,-226.60770527,0.00022739,2]
[363069823,1748566249726,-430.0,0.00022739,2]
[363069825,1748566249735,-430.0,0.00022739,2]
[363069827,1748566249745,-961.64,0.00022739,2]
[363069829,1748566249754,-1021.24,0.00022739,2]
[363069831,1748566249764,-614.42,0.00022739,2]
[363069833,1748566249773,-538.74,0.00022739,2]
[363069835,1748566249783,-430.0,0.00022739,2]
[363069837,1748566249793,-430.0,0.00022739,2]
[363069839,1748566249802,-1700.68,0.00022739,2]
[363069841,1748566249811,-430.0,0.00022739,2]
[363069843,1748566249820,-489.41394506,0.00022739,2]
[363069845,1748566249829,-430.0,0.00022739,2]
[363069847,1748566249839,-471.49295602,0.00022739,2]
[363069849,1748566249848,-960.46,0.00022739,2]
[363069850,1748566249857,-430.0,0.00022739,2]
[363069852,1748566249867,-1200.78,0.00022739,2]
[363069854,1748566249877,-960.21,0.00022739,2]
[363069856,1748566249889,-1011.91,0.00022739,2]
[363069858,1748566249898,-1032.95,0.00022739,2]
[363069860,1748566249906,-689.73,0.00022739,2]
[363069862,1748566249915,-1315.76,0.00022739,2]
[363069864,1748566249929,-497.12,0.00022739,2]
[363069866,1748566249937,-804.44,0.00022739,2]
[363069868,1748566249946,-464.71391532,0.00022739,2]
[363069870,1748566249955,-430.0,0.00022739,2]
[363069872,1748566249964,-612.13,0.00022739,2]
[363069874,1748566249973,-430.0,0.00022739,2]
[363069876,1748566249982,-758.53,0.00022739,2]
[363069878,1748566249993,-688.03,0.00022739,2]
[363069880,1748566250002,-550.23,0.00022739,2]
[363069882,1748566250011,-377.38,0.00022739,2]
[363069884,1748566250020,-430.0,0.00022739,2]
[363069886,1748566250030,-561.0,0.00022776,2]
[363069887,1748566250039,-215.0738,0.00022798,2]
[363069889,1748566250049,-473.959525,0.000228,7]
[363069891,1748566250064,-473.959525,0.000228,7]
[363069893,1748566250074,-258.768,0.00022824,2]
[363069895,1748566250084,-608.611,0.00022824,2]
[363069896,1748566250094,-842.85094271,0.00022831,8]
[363069897,1748566250104,-151.0,0.00022879,7]
[363069898,1748566250115,-473.959525,0.00022879,7]
[363069899,1748566250129,-473.959525,0.00022879,7]
[363069900,1748566250141,-236.85360421,0.00022887,2]
[363069901,1748566250150,-158.9552041,0.00022904,2]
[363069902,1748566250160,-589.71121358,0.00022938,2]
[363069903,1748566250170,-842.85094271,0.00022969,8]
[363069904,1748566250180,-160.0,0.00022996,3]
[363069905,1748566250191,-161.02783236,0.00022996,5]
[363069906,1748566250202,-4959.21,0.00023,2]
[363069907,1748566250212,-171.0,0.00023,7]
[363069908,1748566250223,-6746.85005729,0.00023,2]
[363069909,1748566250233,-430.0,0.00023013,2]
[363069910,1748566250244,-569.61802642,0.00023013,2]
[363069911,1748566250253,-961.64,0.00023013,2]
[363069912,1748566250262,-1021.24,0.00023013,2]
[363069913,1748566250272,-614.42,0.00023013,2]
[363069914,1748566250282,-538.74,0.00023013,2]
[363069915,1748566250293,-430.0,0.00023013,2]
[363069916,1748566250303,-353.23,0.00023013,2]
[363069918,1748566250313,-1700.68,0.00023013,2]
[363069919,1748566250323,-430.0,0.00023013,2]
[363069921,1748566250333,-430.0,0.00023013,2]
[363069923,1748566250343,-960.46,0.00023013,2]
[363069926,1748566250357,-430.0,0.00023013,2]
[363069928,1748566250366,-1200.78,0.00023013,2]
[363069929,1748566250384,-960.21,0.00023013,2]
[363069931,1748566250396,-1011.91,0.00023013,2]
[363069934,1748566250407,-1032.95,0.00023013,2]
[363069935,1748566250416,-689.73,0.00023013,2]
[363069937,1748566250426,-1315.76,0.00023013,2]
[363069939,1748566250435,-497.12,0.00023013,2]
[363069941,1748566250444,-804.44,0.00023013,2]
[363069943,1748566250454,-430.0,0.00023013,2]
[363069945,1748566250463,-612.13,0.00023013,2]
[363069947,1748566250472,-430.0,0.00023013,2]
[363069949,1748566250481,-758.53,0.00023013,2]
[363069951,1748566250490,-688.03,0.00023013,2]
[363069953,1748566250500,-550.23,0.00023013,2]
[363069955,1748566250510,-430.0,0.00023013,2]
[363069957,1748566250519,-589.71121358,0.00023064,2]
[363069959,1748566250528,-678.02767498,0.0002307,2]
[363069961,1748566250538,-3898.16,0.000231,7]
[363069963,1748566250547,-842.85094271,0.00023107,8]
[363069965,1748566250556,-257.8100361,0.00023123,2]
[363069967,1748566250566,-153.0,0.00023123,2]
[363069969,1748566250575,-153.0,0.00023123,2]
[363069971,1748566250587,-500.0,0.00023155,2]
[363069973,1748566250599,-158.9552041,0.00023205,2]
[363069975,1748566250608,-842.85094271,0.00023245,8]
[363069977,1748566250622,-1500.0,0.00023256,2]
[363069979,1748566250631,-500.0,0.00023258,8]
[363069982,1748566250643,-500.0,0.00023287,2]
[363069984,1748566250651,-600.0,0.00023287,2]
[363069986,1748566250661,-430.0,0.00023287,2]
[363069988,1748566250671,-803.80191032,0.00023287,2]
[363069990,1748566250682,-961.64,0.00023287,2]
[363069992,1748566250691,-1021.24,0.00023287,2]
[363069994,1748566250701,-614.42,0.00023287,2]
[363069996,1748566250710,-538.74,0.00023287,2]
[363069997,1748566250720,-430.0,0.00023287,2]
[363069999,1748566250729,-1700.68,0.00023287,2]
[363070001,1748566250739,-535.14246646,0.00023287,2]
[363070002,1748566250748,-460.32760625,0.00023287,2]
[363070004,1748566250758,-960.46,0.00023287,2]
[363070006,1748566250768,-430.0,0.00023287,2]
[363070008,1748566250777,-1200.78,0.00023287,2]
[363070010,1748566250787,-960.21,0.00023287,2]
[363070012,1748566250796,-1011.91,0.00023287,2]
[363070014,1748566250805,-1032.95,0.00023287,2]
[363070016,1748566250814,-803.80191032,0.00023287,2]
[363070018,1748566250824,-689.73,0.00023287,2]
[363070020,1748566250834,-1315.76,0.00023287,2]
[363070022,1748566250842,-497.12,0.00023287,2]
[363070024,1748566250851,-804.44,0.00023287,2]
[363070026,1748566250860,-430.0,0.00023287,2]
[363070028,1748566250872,-612.13,0.00023287,2]
[363070030,1748566250882,-430.0,0.00023287,2]
[363070031,1748566250891,-758.53,0.00023287,2]
[363070033,1748566250901,-688.03,0.00023287,2]
[363070035,1748566250911,-550.23,0.00023287,2]
[363070037,1748566250920,-430.0,0.00023287,2]
[363070039,1748566250930,-992.29,0.000233,7]
[363070041,1748566250939,-151.0,0.000233,7]
[363070043,1748566250948,-10000.0,0.000233,27]
[363070045,1748566250958,-1328.905677,0.00023324,3]
[363070047,1748566250968,-842.85094271,0.00023383,9]
[363070049,1748566250977,-151.0,0.000234,5]
[363070051,1748566250986,-1816.11,0.00023426,3]
[363070053,1748566250997,-133217.38,0.00023496,9]
[363070055,1748566251007,-156.2,0.000235,2]
[363070057,1748566251015,-158.9552041,0.00023507,2]
[363070058,1748566251024,-842.85094271,0.00023521,9]
[363070060,1748566251034,-911.63,0.00023551,10]
[363070062,1748566251043,-759.69,0.00023551,10]
[363070064,1748566251052,-633.07,0.00023551,10]
[363070066,1748566251062,-569.8099276,0.00023561,2]
[363070068,1748566251071,-961.64,0.00023561,2]
[363070070,1748566251081,-1021.24,0.00023561,2]
[363070072,1748566251091,-614.42,0.00023561,2]
[363070074,1748566251101,-538.74,0.00023561,2]
[363070076,1748566251110,-430.0,0.00023561,2]
[363070078,1748566251125,-1700.68,0.00023561,2]
[363070080,1748566251134,-960.46,0.00023561,2]
[363070082,1748566251143,-430.0,0.00023561,2]
[363070084,1748566251153,-1200.78,0.00023561,2]
[363070085,1748566251162,-960.21,0.00023561,2]
[363070087,1748566251171,-1011.91,0.00023561,2]
[363070089,1748566251180,-1032.95,0.00023561,2]
[363070091,1748566251190,-689.73,0.00023561,2]
[363070093,1748566251200,-1315.76,0.00023561,2]
[363070095,1748566251210,-497.12,0.00023561,2]
[363070097,1748566251219,-804.44,0.00023561,2]
[363070099,1748566251229,-430.0,0.00023561,2]
[363070101,1748566251239,-612.13,0.00023561,2]
[363070103,1748566251249,-430.0,0.00023561,2]
[363070105,1748566251259,-758.53,0.00023561,2]
[363070107,1748566251270,-688.03,0.00023561,2]
[363070109,1748566251280,-550.23,0.00023561,2]
[363070111,1748566251290,-430.0,0.00023561,2]
[363070113,1748566251300,-200.0,0.00023568,120]
[363070115,1748566251311,-5288.99,0.000236,7]
[363070126,1748566251422,-842.85094271,0.00023659,9]
[363070128,1748566251431,-236.85360421,0.000237,2]
[363070130,1748566251441,-199.36839248,0.000237,2]
[363070132,1748566251452,-842.85094271,0.00023797,9]
[363070134,1748566251461,-160.0,0.000238,3]
[363070136,1748566251471,-842.5625,0.000238,3]
[363070138,1748566251480,-160.0,0.000238,3]
[363070140,1748566251490,-160.0,0.000238,3]
[363070142,1748566251499,-423.31762986,0.000238,3]
[363070144,1748566251508,-10420.58598532,0.000238,3]
[363070146,1748566251518,-34631.60888379,0.000238,2]
[363070157,1748566251634,-902.04276526,0.000238,2]
[363070159,1748566251646,-2565.58867951,0.000238,2]
[363070161,1748566251658,-5149.8297755,0.000238,2]
[363070163,1748566251669,-10634.91003513,0.000238,2]
[363070166,1748566251681,-1531.32499416,0.000238,2]
[363070180,1748566251806,-902.77,0.00019178,2]
[363070182,1748566251816,-321.09509834,0.00019452,2]
[363070184,1748566251828,-581.67490166,0.00019452,2]
[363070186,1748566251838,-902.77,0.00019726,2]
[363070188,1748566251847,-902.77,0.0002,2]
[363070190,1748566251857,-731.43369608,0.00020273,2]
[363070205,1748566251992,-300.0,0.00019177,2]
[363070207,1748566252002,-178.37286952,0.00019178,2]
[363070209,1748566252013,-93.50518219,0.00019178,2]
[363070211,1748566252022,-430.0,0.00019178,2]
[363070213,1748566252031,-430.0,0.00019178,2]
[363070215,1748566252041,-430.0,0.00019452,2]
[363070217,1748566252049,-181.60920747,0.00019452,2]
[363070219,1748566252062,-248.39079253,0.00019452,2]
[363070221,1748566252071,-338.46,0.00019726,2]
[363070223,1748566252080,-430.0,0.00019726,2]
[363070225,1748566252090,-430.0,0.0002,2]
[363070227,1748566252099,-171.33630392,0.00020273,2]
[363070229,1748566252109,-160.0,0.00020355,2]
[363070231,1748566252120,-902.77,0.00020547,2]
[363070233,1748566252129,-902.77,0.00020821,2]
[363070235,1748566252139,-902.77,0.00021095,2]
[363070237,1748566252149,-902.77,0.00021369,2]
[363070239,1748566252157,-902.77,0.00021643,2]
[363070241,1748566252167,-902.77,0.00021917,2]
[363070243,1748566252175,-902.77,0.00022191,2]
[363070245,1748566252185,-902.77,0.00022465,2]
[363070246,1748566252194,-902.77,0.00022739,2]
[363070248,1748566252204,-902.77,0.00023013,2]
[363070250,1748566252213,-902.77,0.00023287,2]
[363070252,1748566252223,-35637.79378793,0.000238,2]
[363070254,1748566252233,-160.0,0.000238,3]
[363070256,1748566252242,-12660.97845086,0.000238,3]
[363070258,1748566252251,-151.0,0.000238,7]
[363070260,1748566252260,-151.0,0.000238,7]
[363070262,1748566252270,-151.0,0.000238,7]
[363070264,1748566252280,-151.0,0.000238,7]
[363070266,1748566252291,-5444.31322719,0.000238,7]
[363070268,1748566252300,-151.51476,0.000238,7]
[363070270,1748566252309,-151.51476,0.000238,7]
[363070272,1748566252319,-151.0,0.000238,7]
[363070274,1748566252329,-50839.22325857,0.000238,2]
[363070297,1748566252547,-430.0,0.00019178,2]
[363070299,1748566252557,-430.0,0.00019178,2]
[363070301,1748566252566,-430.0,0.00019178,2]
[363070303,1748566252576,-430.0,0.00019178,2]
[363070305,1748566252588,-430.0,0.00019178,2]
[363070307,1748566252597,-430.0,0.00019452,2]
[363070309,1748566252607,-430.0,0.00019452,2]
[363070311,1748566252620,-430.0,0.00019452,2]
[363070313,1748566252630,-430.0,0.00019726,2]
[363070315,1748566252639,-430.0,0.00019726,2]
[363070317,1748566252649,-430.0,0.0002,2]
[363070319,1748566252657,-430.0,0.00020273,2]
[363070321,1748566252667,-430.0,0.00020547,2]
[363070323,1748566252676,-430.0,0.00020821,2]
[363070324,1748566252686,-430.0,0.00021095,2]
[363070326,1748566252696,-430.0,0.00021369,2]
[363070328,1748566252705,-430.0,0.00021643,2]
[363070330,1748566252715,-430.0,0.00021917,2]
[363070331,1748566252725,-902.77,0.00023561,2]
[363070332,1748566252735,-38058.27542777,0.000238,2]
[363070842,1748566325683,182.95,0.00015407,2]
[363070846,1748566398473,196.19,0.00014705,2]
[363070847,1748566398887,392.39,0.00015405,2]
[363070848,1748566470089,473.32,0.00014062,2]
[363070849,1748566470496,946.64,0.00014731,2]
[363070850,1748566470943,709.54452537,0.00015401,2]
[363070851,1748566470967,710.42547463,0.00015401,2]
[363070852,1748566484946,2817.04267761,0.00016,2]
[363070853,1748566542725,421.69,0.00014089,2]
[363070854,1748566543131,843.37,0.00014759,2]
[363070856,1748566543861,1265.06,0.0001543,2]
[363070857,1748566546965,1019.943581,0.00013699,2]
[363070858,1748566614292,375.68,0.00014095,2]
[363070859,1748566615013,751.37,0.00014766,2]
[363070860,1748566615420,1127.05,0.00015438,2]
[363070861,1748566687420,334.7,0.00014143,2]
[363070862,1748566687872,659.37848898,0.00014816,2]
[363070863,1748566687898,10.02151102,0.00014816,2]
[363070864,1748566688308,1004.1,0.00015489,2]
[363070866,1748566732841,5000.0,0.00016,2]
[363070867,1748566749288,4311.5887112,0.00016,2]
[363070868,1748566749316,688.4112888,0.00016,2]
[363070869,1748566760359,300.49,0.00014163,2]
[363070871,1748566760778,600.98,0.00014837,2]
[363070872,1748566761677,901.47,0.00015512,2]
[363070873,1748566765798,526.89298249,0.00016,2]
[363070875,1748566782053,2739.7342729,0.00016,2]
[363070876,1748566832462,267.71,0.00014162,2]
[363070877,1748566832861,535.42,0.00014837,2]
[363070878,1748566833808,803.13,0.00015511,2]
[363070879,1748566841771,2961.47167803,0.00016,2]
[363070880,1748566841801,1398.96405077,0.00016,2]
[363070881,1748566844704,578.73737543,0.00016,2]
[363070882,1748566847834,848.8148173,0.00016,2]
[363070883,1748566848691,679.05185384,0.00016,2]
[363070884,1748566849361,543.24148307,0.00016,2]
[363070885,1748566850269,243.84134754,0.00016,2]
[363070888,1748566905244,238.51,0.00014239,2]
[363070889,1748566905650,477.01,0.00014917,2]
[363070890,1748566906054,715.52,0.00015595,2]
[363070892,1748566973498,1398.96405077,0.00016,2]
[363070893,1748566980917,225.4,0.00014125,2]
[363070894,1748566981332,450.81,0.00014798,2]
[363070895,1748566981925,676.21,0.00015471,2]
[363070896,1748567033066,1850.6352435,0.00016,2]
[363070897,1748567033093,929.19952659,0.00016,2]
[363070898,1748567054322,220.09,0.00014117,2]
[363070899,1748567054764,440.18,0.00014789,2]
[363070900,1748567055353,660.26,0.00015462,2]
[363070901,1748567093561,4034.72550658,0.00016,2]
[363070902,1748567132080,196.08,0.00014129,2]
[363070903,1748567132515,392.16,0.00014801,2]
[363070904,1748567133429,588.24,0.00015474,2]
[363070905,1748567153434,2864.77518905,0.00016,2]
[363070906,1748567153459,2135.22481095,0.00016,2]
[363070907,1748567204143,174.69,0.00014118,2]
[363070908,1748567204568,349.38,0.0001479,2]
[363070909,1748567204962,524.06,0.00015462,2]
[363070910,1748567211595,5000.0,0.00016,2]
[363070911,1748567233122,-698.75,0.00016134,2]
[363070912,1748567233144,-167.0,0.00016438,3]
[363070913,1748567233167,-873.44,0.00016807,2]
[363070914,1748567233190,-300.0,0.00017415,2]
[363070915,1748567233212,-300.0,0.00017415,2]
[363070916,1748567233236,-3122.25896036,0.00017416,2]
[363070917,1748567243248,2015.67192387,0.00016,2]
[363070918,1748567254147,-292.13819733,0.00016134,2]
[363070919,1748567274900,126.6834874,0.00014126,2]
[363070920,1748567274924,84.2265126,0.00014126,2]
[363070921,1748567275365,421.82,0.00014799,2]
[363070922,1748567275796,632.73,0.00015472,2]
[363070924,1748567345134,-93.68671962,0.00016134,2]
[363070925,1748567345154,-327.71328038,0.00016134,2]
[363070926,1748567345183,-58.11163657,0.00016134,2]
[363070927,1748567346017,247.84,0.00014132,2]
[363070928,1748567346631,155.31404896,0.00014805,2]
[363070929,1748567346654,340.37595104,0.00014805,2]
[363070930,1748567347077,743.53,0.00015478,2]
[363070931,1748567347106,-385.82491695,0.00017415,2]
[363070932,1748567347126,-385.82491695,0.00017415,2]
[363070933,1748567347146,-300.0,0.00017415,2]
[363070934,1748567347175,-385.82491695,0.00017416,2]
[363070935,1748567347206,-155.0,0.00017416,2]
[363070936,1748567347232,-11280.52284915,0.00017416,2]
[363070937,1748567349177,-991.38,0.00016151,2]
[363070938,1748567349220,-1193.21241609,0.00016824,2]
[363070939,1748567351126,-46.00758391,0.00016824,2]
[363070940,1748567351151,-45.25322969,0.00017416,2]
[363070941,1748567351178,-1344.94795155,0.00017497,2]
[363070946,1748567371125,-142.12204845,0.00017497,2]
[363070947,1748567371144,-329.993412,0.00017776,2]
[363070948,1748567371165,-1634.88453955,0.0001817,2]
[363070949,1748567417121,286.55,0.00014811,2]
[363070950,1748567417545,429.83,0.00015485,2]
[363071013,1748567432537,-573.1,0.00016158,2]
[363071014,1748567432547,-716.38,0.00016831,2]
[363071015,1748567432557,-859.65,0.00017504,2]
[363071016,1748567432566,-319.3934914,0.00018056,2]
[363071018,1748567432575,-1002.93,0.00018178,2]
[363071020,1748567432585,-200.0,0.00018374,2]
[363071022,1748567432595,-300.0,0.00018374,2]
[363071024,1748567432604,-300.0,0.00018374,2]
[363071025,1748567432613,-10254.45446339,0.00018375,2]
[363071026,1748567432701,-8031.97186341,0.00018375,2]
[363071028,1748567432710,-1146.2,0.00018851,2]
[363071030,1748567432722,-254.26037817,0.00019078,2]
[363071031,1748567432732,-500.0,0.00019173,2]
[363071033,1748567432740,-500.0,0.00019173,2]
[363071034,1748567432750,-500.0,0.00019173,2]
[363071035,1748567432759,-500.0,0.00019173,2]
[363071036,1748567432768,-282.82083781,0.00019173,2]
[363071037,1748567432779,-217.17916219,0.00019173,2]
[363071038,1748567432788,-160.0,0.00019177,2]
[363071039,1748567432797,-500.0,0.00019177,2]
[363071040,1748567432807,-500.0,0.00019177,2]
[363071041,1748567432816,-500.0,0.00019177,2]
[363071042,1748567432825,-500.0,0.00019177,2]
[363071043,1748567432835,-534.92031118,0.00019177,2]
[363071044,1748567432844,-452.40717739,0.00019177,2]
[363071045,1748567432854,-500.0,0.00019177,2]
[363071046,1748567432863,-500.0,0.00019177,2]
[363071047,1748567432872,-432.19479243,0.00019177,2]
[363071048,1748567432881,-400.0,0.00019178,2]
[363071049,1748567432890,-430.0,0.00019178,2]
[363071050,1748567432899,-500.0,0.00019178,2]
[363071051,1748567432908,-580.12822197,0.00019178,2]
[363071052,1748567432917,-500.0,0.00019178,2]
[363071053,1748567432926,-430.0,0.00019178,2]
[363071054,1748567432936,-189.22247947,0.00019178,2]
[363071055,1748567432946,-371.61362936,0.00019178,2]
[363071056,1748567432955,-430.0,0.00019178,2]
[363071057,1748567432966,-420.0,0.00019178,2]
[363071058,1748567432976,-430.0,0.00019178,2]
[363071059,1748567432986,-400.0,0.00019178,2]
[363071060,1748567432996,-374.19465851,0.00019178,2]